[Event "Katowice Springs 2018"]
[Site "Katowice"]
[Date "2018.05.10"]
[Round "6"]
[White "Krzywda, Andrzej"]
[Black "Molenda, Marcin"]
[Result "1/2-1/2"]
[ECO "B36"]
[WhiteElo "2163"]
[BlackElo "2383"]
[Annotator "NA"]
[PlyCount "228"]
[EventDate "2018.??.??"]
[EventType "swiss"]
[EventCountry "POL"]
[SourceTitle "playchess.com"]
[Source "ChessBase"]
[SourceQuality "1"]
[TimeControl "40/5400+30:1800+30"]

{[%evp 9,216,53,44,38,41,38,45,39,32767,32767,32767,32767,32767,32767,32767,29,30,31,25,20,13,7,9,3,2,0,0,0,0,0,17,0,32767,-15,-21,32767,-21,-17,32767,32767,-43,-52,-22,-18,-18,-18,-18,32767,32767,32767,32767,32767,32767,32767,32767,32767,32767,32767,32767,32767,32767,32767,32767,32767,32767,32767,32767,32767,32767,32767,32767,32767,0,0,32767,32767,0,32767,0,0,0,0,0,0,8,32767,32767,0,32767,0,32767,-8,-8,-12,0,32767,-11,-12,-13,32767,-9,-8,-8,32767,32767,-17,32767,32767,32767,32767,32767,-16,0,-25,-8,-8,32767,32767,0,0,-7,0,0,-8,0,0,0,-8,-8,-16,-12,0,0,-12,0,-8,32767,32767,32767,32767,32767,-16,0,32767,-18,32767,32767,-9,-8,-8,-8,-45,-3,-7,-45,-44,-18,-13,-8,0,-45,-51,0,0,-52,-56,-2,-54,-59,-20,-53,-44,-40,-5,-52,-6,-54,32767,32767,32767,32767,32767,-42,-47,0,0,-70,-71,-72,-73,32767,32767,32767,32767,32767,32767,32767,-69,-69,-72,-72,32767,0,-70,32767,32767,32767,-70,-71]} 1. e4 {[%emt 0:00:00]} c5 {[%emt 0:00:06]} 2. Nf3 {[%emt 0:00:00]} Nc6 {[%emt 0:00:18]} 3. d4 cxd4 {[%emt 0:00:07]} 4. Nxd4 {[%emt 0:00:00]} g6 {[%emt 0:00:23]} 5. c4 {[%emt 0:03:32]} Nf6 {[%emt 0:00:29]} 6. Nc3 {[%emt 0:00:15]} d6 {[%emt 0:00:13]} 7. Be2 {[%emt 0:01:22]} Nxd4 {[%emt 0:00:08]} 8. Qxd4 {[%emt 0:00:04]} Bg7 {[%emt 0:00:06]} 9. Be3 {[%emt 0:01:01]} O-O {[%emt 0:00:08]} 10. Qd2 {[%emt 0:00:15]} a5 {[%emt 0:00:09] B36: Sicilian: Maroczy Bind: Gurgenidze System} 11. f3 {[%emt 0:04:49]} a4 {[%emt 0:00:10]} 12. O-O {[%emt 0:01:05]} Qa5 {[%emt 0:04:44]} (12... Be6 13. Nb5 Nd7 14. Rab1 Qa5 15. Qxa5 Rxa5 16. Nc7 Nc5 17. Rfc1 Rc8 18. Bd2 Ra7 19. Nxe6 Nxe6 20. Kf1 Nc5 {½-½ (78) Yu,Y (2751)-Mamedov,R (2709) Huaian 2017}) 13. Rab1 {[%emt 0:00:27]} Be6 {[%emt 0:00:58]} 14. Rfc1 {[%emt 0:07:21]} Rfc8 {[%emt 0:00:41]} 15. b4 {[%emt 0:01:17] LiveBook: 42 Games} axb3 $1 {[%emt 0:00:20]} 16. axb3 {[%emt 0:00:05]} Qb4 {[%emt 0:01:28]} 17. Rc2 {[%emt 0:02:11]} Nd7 {[%emt 0:01:16]} 18. Qc1 {[%emt 0:02:53] [#]} Nc5 $146 {[%emt 0:05:15]} 19. Nd5 {[%emt 0:07:11]} Bxd5 $1 {[%emt 0:01:23]} 20. cxd5 {[%emt 0:00:06]} Bd4 {[%emt 0:07:27]} 21. Rc4 {[%emt 0:01:41]} Bxe3+ {[%emt 0:00:09]} 22. Qxe3 {[%emt 0:00:05]} Qa3 {[%emt 0:02:20]} 23. e5 {[%emt 0:13:24]} Nd7 {[%emt 0:06:52]} 24. f4 {[%emt 0:06:46]} Rxc4 {[%emt 0:02:28]} 25. Bxc4 {[%emt 0:00:05]} Qa7 {[%emt 0:07:07]} 26. Re1 {[%emt 0:09:48]} Kf8 {[%emt 0:02:21]} 27. Kf2 {[%emt 0:08:25]} Qxe3+ {[%emt 0:00:28]} 28. Rxe3 {[%emt 0:00:14]} Ra2+ {[%emt 0:00:06]} 29. Kf3 {[%emt 0:02:25]} Rb2 {[%emt 0:01:52]} 30. h3 {[%emt 0:02:14]} h6 {[%emt 0:09:51]} 31. g3 {[%emt 0:00:26]} Nc5 {[%emt 0:03:34]} 32. h4 {[%emt 0:05:30]} Kg7 {[%emt 0:01:10]} 33. g4 {[%emt 0:01:13]} g5 {[%emt 0:05:45]} 34. fxg5 {[%emt 0:02:42]} hxg5 {[%emt 0:00:04]} 35. exd6 {[%emt 0:00:12]} exd6 {[%emt 0:00:02]} 36. hxg5 {[%emt 0:01:30]} Nd7 {[%emt 0:00:49]} 37. Re7 {[%emt 0:00:36]} Ne5+ {[%emt 0:00:16]} 38. Ke4 {[%emt 0:01:45]} b5 {[%emt 0:00:20]} 39. Bxb5 {[%emt 0:01:19]} Rxb3 {[%emt 0:00:07]} 40. Be2 {[%emt 0:06:03]} Kg6 {[%emt 0:37:00]} 41. Ra7 {[%emt 0:30:43]} Rb2 {[%emt 0:04:15]} 42. Ke3 {[%emt 0:01:13]} Rb6 {[%emt 0:05:38]} 43. Kf4 {[%emt 0:00:13]} Kg7 {[%emt 0:03:49]} 44. Ra8 {[%emt 0:00:40]} Rb4+ {[%emt 0:00:25]} 45. Ke3 {[%emt 0:00:13]} Rb3+ {[%emt 0:01:08]} 46. Ke4 {[%emt 0:00:14]} Nd7 {[%emt 0:01:17]} 47. Kf4 {[%emt 0:02:34]} Nb6 {[%emt 0:03:13]} 48. Ra5 {[%emt 0:02:51]} Rb4+ {[%emt 0:00:21]} 49. Ke3 {[%emt 0:02:44]} Kg6 {[%emt 0:00:21]} 50. Ra7 {[%emt 0:00:38]} Nxd5+ {[%emt 0:00:10]} 51. Kf2 {[%emt 0:00:24]} Nf4 {[%emt 0:00:52]} 52. Bd1 {[%emt 0:01:24]} Nh3+ {[%emt 0:01:20]} 53. Ke3 {[%emt 0:00:15]} Nxg5 {[%emt 0:00:12]} 54. Rd7 {[%emt 0:01:24]} Rb6 {[%emt 0:02:56]} 55. Kd4 {[%emt 0:00:36]} Ne6+ {[%emt 0:00:59]} 56. Kd5 {[%emt 0:00:37]} Nf4+ {[%emt 0:00:15]} 57. Ke4 {[%emt 0:00:31]} Rb4+ {[%emt 0:00:07]} 58. Ke3 {[%emt 0:00:10]} Nd5+ {[%emt 0:00:45]} 59. Kf3 {[%emt 0:00:27]} Rb6 {[%emt 0:00:43]} 60. Bc2+ {[%emt 0:00:26]} Kf6 {[%emt 0:00:16]} 61. Bf5 {[%emt 0:01:03]} Nc3 {[%emt 0:03:25]} 62. Bh7 {[%emt 0:00:23]} Kg7 {[%emt 0:00:26]} 63. Bd3 {[%emt 0:00:30]} Rc6 {[%emt 0:00:52]} 64. g5 {[%emt 0:00:22]} Kf8 {[%emt 0:04:52]} 65. g6 {[%emt 0:00:02]} fxg6 {[%emt 0:00:12]} 66. Bxg6 {[%emt 0:00:06]} Nd5 {[%emt 0:00:31]} 67. Rf7+ {[%emt 0:00:44]} Kg8 {[%emt 0:00:01]} 68. Ra7 {[%emt 0:00:26]} Nc7 {[%emt 0:00:10]} 69. Kf4 {[%emt 0:00:39]} Kg7 {[%emt 0:00:10]} 70. Be4 {[%emt 0:00:41]} Rc5 {[%emt 0:00:09]} 71. Ra1 {[%emt 0:00:53]} Kf6 {[%emt 0:00:33]} 72. Rh1 {[%emt 0:00:10]} Ne6+ {[%emt 0:00:11]} 73. Ke3 {[%emt 0:00:13]} Rc3+ {[%emt 0:00:17]} 74. Kd2 {[%emt 0:00:01]} Rg3 {[%emt 0:00:16]} 75. Rh8 {[%emt 0:01:37]} Ng5 {[%emt 0:00:40]} 76. Bc6 {[%emt 0:00:31]} Ke5 {[%emt 0:00:10]} 77. Ke2 {[%emt 0:00:49]} Rc3 {[%emt 0:00:08]} 78. Bb7 {[%emt 0:00:17]} Ne6 {[%emt 0:01:21]} 79. Kd2 {[%emt 0:00:13]} Rb3 {[%emt 0:00:22]} 80. Bc8 {[%emt 0:00:42]} Nc5 {[%emt 0:00:27]} 81. Rh5+ {[%emt 0:00:20]} Kd4 {[%emt 0:00:14]} 82. Bf5 {[%emt 0:00:33]} Rb2+ {[%emt 0:00:46]} 83. Bc2 {[%emt 0:00:22]} d5 {[%emt 0:00:22]} 84. Kc1 {[%emt 0:00:44]} Rb8 {[%emt 0:00:10]} 85. Rh4+ {[%emt 0:00:09]} Kc3 {[%emt 0:00:32]} 86. Rh3+ {[%emt 0:00:09]} Kc4 {[%emt 0:00:06]} 87. Bg6 {[%emt 0:00:41]} Rf8 {[%emt 0:00:23]} 88. Rh7 {[%emt 0:00:54]} Rf2 {[%emt 0:01:25]} 89. Rf7 {[%emt 0:01:00]} Rg2 {[%emt 0:00:42]} 90. Bc2 {[%emt 0:00:26]} Na6 {[%emt 0:02:26]} 91. Ra7 {[%emt 0:00:34]} Nb4 {[%emt 0:00:11]} 92. Bf5 {[%emt 0:00:22]} Kd4 {[%emt 0:01:21]} 93. Be6 {[%emt 0:00:29]} Na2+ {[%emt 0:01:09]} 94. Kd1 {[%emt 0:00:37]} Nc3+ {[%emt 0:00:24]} 95. Kc1 {[%emt 0:00:07]} Nb5 {[%emt 0:01:06]} 96. Rd7 {[%emt 0:00:53]} Nc3 {[%emt 0:01:54]} 97. Bxd5 {[%emt 0:00:11]} Nxd5 {[%emt 0:00:02]} 98. Rd8 {[%emt 0:00:22]} Kc4 {[%emt 0:00:11]} 99. Kd1 {[%emt 0:00:20]} Nf4 {[%emt 0:00:39]} 100. Rc8+ {[%emt 0:00:27]} Kd4 {[%emt 0:00:19]} 101. Rd8+ {[%emt 0:00:10]} Ke3 {[%emt 0:00:10]} 102. Re8+ {[%emt 0:00:14]} Kf3 {[%emt 0:00:08]} 103. Rf8 {[%emt 0:00:18]} Rh2 {[%emt 0:00:11]} 104. Ke1 {[%emt 0:00:23]} Ke4 {[%emt 0:00:05]} 105. Re8+ {[%emt 0:00:11]} Kd4 {[%emt 0:00:08]} 106. Rd8+ {[%emt 0:00:08]} Nd5 {[%emt 0:00:03]} 107. Kd1 {[%emt 0:00:08]} Kc4 {[%emt 0:00:05]} 108. Rc8+ {[%emt 0:00:12]} Kd3 $17 {[%emt 0:00:05]} 109. Kc1 {[%emt 0:02:05]} Rg2 {[%emt 0:02:10]} 110. Rd8 {[%emt 0:00:27]} Rc2+ {[%emt 0:00:23]} 111. Kb1 {[%emt 0:00:23]} Rc5 {[%emt 0:00:06]} 112. Kb2 {[%emt 0:00:43]} Rb5+ {[%emt 0:00:07]} 113. Kc1 {[%emt 0:00:28]} Rc5+ {[%emt 0:01:34]} 114. Kb2 {[%emt 0:00:13]} Rb5+ 1/2-1/2